fUSD/lending_fUSD_20251109
["ID","MTS","AMOUNT","RATE_DAILY","PERIOD"]
[393437321,1762657854197,-278.370552,0.00016973,2]
[393437322,1762657854206,-278.370543,0.00016973,2]
[393437323,1762657854216,-160.974912,0.00016973,2]
[393437324,1762657854227,-264.022738,0.00016973,2]
[393437325,1762657854237,-264.022738,0.00016973,2]
[393437326,1762657854247,-264.022738,0.00016973,2]
[393437327,1762657854256,-1978.842487,0.00016973,2]
[393437328,1762657854266,-264.022738,0.00016973,2]
[393437329,1762657854275,-1978.842487,0.00016973,2]
[393437330,1762657854285,-754.572117,0.00016973,2]
[393437331,1762657854295,-264.022738,0.00016973,2]
[393437332,1762657854304,-264.022738,0.00016973,2]
[393437333,1762657854314,-1978.842487,0.00016973,2]
[393437334,1762657854324,-1978.842487,0.00016973,2]
[393437335,1762657854334,-264.022738,0.00016973,2]
[393437336,1762657854344,-264.022742,0.00016973,2]
[393437337,1762657854355,-1978.842487,0.00016973,2]
[393437338,1762657854365,-1978.842487,0.00016973,2]
[393437339,1762657854375,-1978.842487,0.00016973,2]
[393437340,1762657854385,-1978.842495,0.00016973,2]
[393437341,1762657854395,-151.0,0.00016973,2]
[393437342,1762657854405,-151.0,0.00016973,2]
[393437343,1762657854415,-151.0,0.00016973,2]
[393437344,1762657854424,-151.0,0.00016973,2]
[393437345,1762657854434,-191.411602,0.00016973,2]
[393437346,1762657854444,-191.411602,0.00016973,2]
[393437347,1762657854453,-191.411602,0.00016973,2]
[393437348,1762657854463,-191.411602,0.00016973,2]
[393437349,1762657854472,-151.0,0.00016973,2]
[393437350,1762657854482,-151.0,0.00016973,2]
[393437351,1762657854491,-191.411602,0.00016973,2]
[393437352,1762657854501,-191.411602,0.00016973,2]
[393437353,1762657854511,-705.539588,0.00016973,2]
[393437354,1762657854520,-705.539588,0.00016973,2]
[393437355,1762657854530,-191.411602,0.00016973,2]
[393437356,1762657854540,-191.411608,0.00016973,2]
[393437357,1762657854549,-705.539588,0.00016973,2]
[393437358,1762657854558,-705.539588,0.00016973,2]
[393437359,1762657854567,-705.539588,0.00016973,2]
[393437360,1762657854576,-705.539588,0.00016973,2]
[393437361,1762657854586,-705.539588,0.00016973,2]
[393437362,1762657854595,-705.539597,0.00016973,2]
[393437363,1762657854608,-151.0,0.00016973,2]
[393437364,1762657854618,-151.0,0.00016973,2]
[393437365,1762657854627,-151.0,0.00016973,2]
[393437366,1762657854637,-151.0,0.00016973,2]
[393437367,1762657854646,-151.0,0.00016973,2]
[393437368,1762657854655,-4451.081586,0.00016973,2]
[393437369,1762657854665,-158.34065,0.00016973,2]
[393437370,1762657854674,-4451.081586,0.00016973,2]
[393437371,1762657854684,-151.0,0.00016973,2]
[393437372,1762657854693,-4451.081586,0.00016973,2]
[393437373,1762657854703,-151.0,0.00016973,2]
[393437374,1762657854712,-4451.081592,0.00016973,2]
[393437375,1762657854721,-151.0,0.00016973,2]
[393437376,1762657854731,-151.0,0.00016973,2]
[393437377,1762657854741,-1122.189429,0.00016973,2]
[393437378,1762657854751,-245.775424,0.00016973,2]
[393437379,1762657854761,-151.0,0.00016973,2]
[393437380,1762657854771,-1122.189429,0.00016973,2]
[393437381,1762657854781,-151.0,0.00016973,2]
[393437382,1762657854791,-2567.176262,0.00016973,2]
[393437383,1762657854802,-1122.189429,0.00016973,2]
[393437384,1762657854812,-151.0,0.00016973,2]
[393437385,1762657854822,-2567.176262,0.00016973,2]
[393437386,1762657854832,-159.813094,0.00016973,2]
[393437387,1762657854841,-1122.18943,0.00016973,2]
[393437388,1762657854852,-2567.176262,0.00016973,2]
[393437389,1762657854862,-2567.17626,0.00016973,2]
[393437390,1762657854871,-298.153219,0.00016973,2]
[393437391,1762657854881,-298.153219,0.00016973,2]
[393437392,1762657854890,-298.153219,0.00016973,2]
[393437393,1762657854899,-298.153211,0.00016973,2]
[393437394,1762657854909,-151.0,0.00016973,2]
[393437395,1762657854919,-151.0,0.00016973,2]
[393437396,1762657854929,-151.0,0.00016973,2]
[393437397,1762657854939,-151.0,0.00016973,2]
[393437398,1762657854949,-151.0,0.00016973,2]
[393437399,1762657854958,-151.0,0.00016973,2]
[393437400,1762657855072,-151.0,0.00016973,2]
[393437401,1762657855082,-151.0,0.00016973,2]
[393437402,1762657855092,-151.0,0.00016973,2]
[393437403,1762657855103,-151.0,0.00016973,2]
[393437404,1762657855113,-154.628871,0.00016973,2]
[393437405,1762657855122,-154.628871,0.00016973,2]
[393437406,1762657855131,-154.628871,0.00016973,2]
[393437407,1762657855142,-154.628868,0.00016973,2]
[393437408,1762657855155,-696.053668,0.00016973,2]
[393437409,1762657855165,-696.053668,0.00016973,2]
[393437410,1762657855174,-696.053668,0.00016973,2]
[393437411,1762657855184,-191.059476,0.00016973,2]
[393437412,1762657855194,-696.053671,0.00016973,2]
[393437413,1762657855205,-191.059476,0.00016973,2]
[393437414,1762657855214,-191.059476,0.00016973,2]
[393437415,1762657855225,-336.546776,0.00016973,2]
[393437416,1762657855234,-191.059475,0.00016973,2]
[393437417,1762657855243,-336.546776,0.00016973,2]
[393437418,1762657855252,-151.0,0.00016973,2]
[393437419,1762657855262,-336.546776,0.00016973,2]
[393437420,1762657855272,-336.546778,0.00016973,2]
[393437421,1762657855283,-151.0,0.00016973,2]
[393437422,1762657855293,-338.9931,0.00016973,2]
[393437423,1762657855303,-182.673786,0.00016973,2]
[393437424,1762657855312,-338.9931,0.00016973,2]
[393437425,1762657855322,-338.9931,0.00016973,2]
[393437426,1762657855332,-338.993105,0.00016973,2]
[393437427,1762657855342,-170.468976,0.00016973,2]
[393437428,1762657855352,-170.468976,0.00016973,2]
[393437429,1762657855362,-170.468976,0.00016973,2]
[393437430,1762657855372,-170.468975,0.00016973,2]
[393437431,1762657855382,-270.50795652,0.00016973,2]
[393437432,1762657855391,-500.0,0.00016976,2]
[393437433,1762657855401,-500.0,0.00016976,2]
[393437434,1762657855410,-500.0,0.00016976,2]
[393437435,1762657855420,-500.0,0.00016976,2]
[393437436,1762657855429,-1418.28851688,0.00016976,2]
[393437437,1762657855439,-266.888997,0.00016977,2]
[393437438,1762657855448,-151.0,0.00016977,2]
[393437439,1762657855458,-151.0,0.00016977,2]
[393437440,1762657855467,-151.0,0.00016977,2]
[393437441,1762657855477,-151.0,0.00016977,2]
[393437442,1762657855487,-156.131667,0.00016977,2]
[393437443,1762657855497,-151.0,0.00016977,2]
[393437444,1762657855507,-206.496713,0.00016977,2]
[393437445,1762657855517,-206.496713,0.00016977,2]
[393437446,1762657855527,-206.496713,0.00016977,2]
[393437447,1762657855536,-206.496713,0.00016977,2]
[393437448,1762657855548,-151.0,0.00016977,2]
[393437449,1762657855557,-214.43224,0.00016977,2]
[393437450,1762657855567,-214.43224,0.00016977,2]
[393437451,1762657855576,-214.43224,0.00016977,2]
[393437452,1762657855586,-214.43224,0.00016977,2]
[393437453,1762657855595,-181.665505,0.00016977,2]
[393437454,1762657855605,-151.0,0.00016977,2]
[393437455,1762657855615,-181.665505,0.00016977,2]
[393437456,1762657855624,-181.665505,0.00016977,2]
[393437457,1762657855634,-181.665505,0.00016977,2]
[393437458,1762657855644,-163.721245,0.00016977,2]
[393437459,1762657855653,-151.0,0.00016977,2]
[393437460,1762657855663,-151.0,0.00016977,2]
[393437461,1762657855672,-241.346829,0.00016977,2]
[393437462,1762657855682,-151.0,0.00016977,2]
[393437463,1762657855691,-151.0,0.00016977,2]
[393437464,1762657855700,-151.0,0.00016977,2]
[393437465,1762657855709,-151.0,0.00016977,2]
[393437466,1762657855719,-151.0,0.00016977,2]
[393437467,1762657855728,-151.0,0.00016977,2]
[393437468,1762657855737,-151.0,0.00016977,2]
[393437469,1762657855747,-151.0,0.00016977,2]
[393437470,1762657855756,-151.0,0.00016977,2]
[393437471,1762657855766,-151.0,0.00016977,2]
[393437472,1762657855776,-151.0,0.00016977,2]
[393437473,1762657855785,-284.01083,0.00016977,2]
[393437474,1762657855795,-151.0,0.00016977,2]
[393437475,1762657855805,-151.0,0.00016977,2]
[393437476,1762657855814,-151.0,0.00016977,2]
[393437477,1762657855824,-151.0,0.00016977,2]
[393437478,1762657855833,-280.528594,0.00016977,2]
[393437479,1762657855842,-151.0,0.00016978,2]
[393437480,1762657855852,-169.22698,0.00016978,2]
[393437481,1762657855861,-151.0,0.00016978,2]
[393437482,1762657855871,-151.0,0.00016978,2]
[393437483,1762657855880,-151.0,0.00016978,2]
[393437484,1762657855889,-159.705595,0.00016978,2]
[393437485,1762657855899,-151.0,0.00016978,2]
[393437486,1762657855908,-151.0,0.00016978,2]
[393437487,1762657855918,-151.0,0.00016978,2]
[393437488,1762657855928,-151.0,0.00016978,2]
[393437489,1762657855937,-212.837481,0.00016978,2]
[393437490,1762657855946,-212.837481,0.00016978,2]
[393437491,1762657855955,-212.837481,0.00016978,2]
[393437492,1762657855965,-176.199768,0.00016978,2]
[393437493,1762657855974,-212.837481,0.00016978,2]
[393437494,1762657855985,-151.0,0.00016978,2]
[393437495,1762657855995,-500.0,0.00016984,2]
[393437496,1762657856006,-500.0,0.00016984,2]
[393437497,1762657856015,-500.0,0.00016984,2]
[393437498,1762657856025,-500.0,0.00016984,2]
[393437499,1762657856035,-500.0,0.00016985,2]
[393437500,1762657856044,-151.0,0.00016985,2]
[393437501,1762657856054,-151.0,0.00016985,2]
[393437502,1762657856064,-151.0,0.00016985,2]
[393437503,1762657856073,-161.290265,0.00016985,2]
[393437504,1762657856082,-500.0,0.00016985,2]
[393437505,1762657856092,-160.562719,0.00016985,2]
[393437506,1762657856101,-151.0,0.00016985,2]
[393437507,1762657856115,-151.0,0.00016985,2]
[393437508,1762657856124,-151.0,0.00016985,2]
[393437509,1762657856134,-151.0,0.00016985,2]
[393437510,1762657856145,-151.0,0.00016985,2]
[393437511,1762657856157,-151.0,0.00016985,2]
[393437512,1762657856167,-158.427453,0.00016985,2]
[393437513,1762657856178,-151.0,0.00016985,2]
[393437514,1762657856188,-151.0,0.00016985,2]
[393437515,1762657856198,-151.0,0.00016985,2]
[393437516,1762657856207,-151.0,0.00016985,2]
[393437517,1762657856216,-151.0,0.00016985,2]
[393437518,1762657856227,-158.345241,0.00016985,2]
[393437519,1762657856237,-162.886951,0.00016985,2]
[393437520,1762657856246,-151.0,0.00016985,2]
[393437521,1762657856256,-151.0,0.00016985,2]
[393437522,1762657856265,-151.0,0.00016985,2]
[393437523,1762657856274,-161.438717,0.00016985,2]
[393437524,1762657856283,-196.95717942,0.00016985,2]
[393437525,1762657856292,-151.0,0.00016985,2]
[393437526,1762657856302,-151.0,0.00016985,2]
[393437527,1762657856312,-151.0,0.00016985,2]
[393437528,1762657856321,-257.799913,0.00016985,2]
[393437529,1762657856331,-151.0,0.00016985,2]
[393437530,1762657856340,-151.0,0.00016985,2]
[393437531,1762657856350,-151.0,0.00016985,2]
[393437532,1762657856359,-151.0,0.00016985,2]
[393437533,1762657856369,-151.0,0.00016985,2]
[393437534,1762657856379,-190.7792,0.00016985,2]
[393437535,1762657856388,-151.0,0.00016985,2]
[393437536,1762657856398,-151.0,0.00016985,2]
[393437537,1762657856407,-151.0,0.00016985,2]
[393437538,1762657856417,-151.0,0.00016985,2]
[393437539,1762657856426,-151.0,0.00016985,2]
[393437540,1762657856436,-548.24671781,0.00016985,2]
[393437541,1762657856446,-151.0,0.00016985,2]
[393437542,1762657856455,-212.837481,0.00016985,2]
[393437543,1762657856465,-500.0,0.00016985,2]
[393437544,1762657856474,-212.837481,0.00016985,2]
[393437545,1762657856484,-212.837481,0.00016985,2]
[393437546,1762657856493,-212.837474,0.00016985,2]
[393437547,1762657856503,-232.962515,0.00016985,2]
[393437548,1762657856513,-206.496713,0.00016985,2]
[393437549,1762657856522,-206.496713,0.00016985,2]
[393437550,1762657856532,-206.496713,0.00016985,2]
[393437551,1762657856541,-206.496712,0.00016985,2]
[393437552,1762657856550,-158.133195,0.00016985,2]
[393437553,1762657856560,-214.43224,0.00016985,2]
[393437554,1762657856569,-214.43224,0.00016985,2]
[393437555,1762657856579,-214.43224,0.00016985,2]
[393437556,1762657856588,-214.432241,0.00016985,2]
[393437557,1762657856598,-181.665505,0.00016985,2]
[393437558,1762657856608,-153.672612,0.00016985,2]
[393437559,1762657856618,-181.665505,0.00016985,2]
[393437560,1762657856628,-181.665505,0.00016985,2]
[393437561,1762657856638,-181.665511,0.00016985,2]
[393437562,1762657856647,-151.0,0.00016985,2]
[393437563,1762657856657,-151.0,0.00016985,2]
[393437564,1762657856666,-168.63083,0.00016985,2]
[393437565,1762657856675,-161.232217,0.00016985,2]
[393437566,1762657856684,-500.0,0.00016985,2]
[393437567,1762657856694,-163.282938,0.00016986,2]
[393437568,1762657856704,-151.0,0.00016986,2]
[393437569,1762657856713,-151.0,0.00016986,2]
[393437570,1762657856722,-151.0,0.00016986,2]
[393437571,1762657856731,-151.0,0.00016986,2]
[393437572,1762657856740,-166.206026,0.00016986,2]
[393437573,1762657856750,-151.0,0.00016986,2]
[393437574,1762657856760,-151.0,0.00016986,2]
[393437575,1762657856770,-151.0,0.00016986,2]
[393437576,1762657856779,-151.0,0.00016986,2]
[393437577,1762657856788,-151.0,0.00016986,2]
[393437578,1762657856797,-207.548897,0.00016986,2]
[393437579,1762657856807,-151.0,0.00016986,2]
[393437580,1762657856817,-151.0,0.00016986,2]
[393437581,1762657856826,-151.0,0.00016986,2]
[393437582,1762657856836,-161.098286,0.00016986,2]
[393437583,1762657856845,-156.672415,0.00016986,2]
[393437584,1762657856855,-151.0,0.00016986,2]
[393437585,1762657856864,-199.703718,0.00016986,2]
[393437586,1762657856873,-230.795341,0.00016986,2]
[393437587,1762657856883,-285.445704,0.00016986,2]
[393437588,1762657856892,-151.0,0.00016986,2]
[393437589,1762657856902,-151.0,0.00016986,2]
[393437590,1762657856911,-170.560163,0.00016986,2]
[393437591,1762657856921,-151.0,0.00016986,2]
[393437592,1762657856930,-151.0,0.00016986,2]
[393437593,1762657856939,-163.444605,0.00016986,2]
[393437594,1762657856949,-151.0,0.00016986,2]
[393437595,1762657856958,-151.0,0.00016986,2]
[393437596,1762657856967,-151.0,0.00016986,2]
[393437597,1762657856976,-151.0,0.00016986,2]
[393437598,1762657856986,-151.0,0.00016986,2]
[393437599,1762657856995,-296.193594,0.00016986,2]
[393437600,1762657857005,-151.0,0.00016986,2]
[393437601,1762657857014,-500.0,0.00016986,2]
[393437602,1762657857024,-500.0,0.00016986,2]
[393437603,1762657857033,-604.41947902,0.00016986,2]
[393437604,1762657857043,-500.0,0.00016986,2]
[393437605,1762657857052,-4105.0,0.00016986,2]
[393437606,1762657857062,-41756.27,0.00016986,2]
[393437607,1762657857071,-205.39982176,0.00016987,2]
[393437608,1762657857175,-1073.38,0.00016995,2]
[393437609,1762657857186,-250.0,0.00017,2]
[393437610,1762657857195,-169.04,0.00017,2]
[393437611,1762657857205,-415.13,0.00017,2]
[393437612,1762657857216,-415.88,0.00017,2]
[393437613,1762657857228,-176.98,0.00017,2]
[393437614,1762657857238,-415.37,0.00017,2]
[393437615,1762657857248,-353.96,0.00017,2]
[393437616,1762657857258,-831.68,0.00017,2]
[393437617,1762657857267,-415.88,0.00017,2]
[393437618,1762657857277,-352.6,0.00017,2]
[393437619,1762657857288,-300.1,0.00017,2]
[393437620,1762657857298,-415.88,0.00017,2]
[393437621,1762657857312,-415.88,0.00017,2]
[393437622,1762657857322,-698.81,0.00017,2]
[393437623,1762657857332,-698.81,0.00017,2]
[393437624,1762657857341,-176.98,0.00017,2]
[393437625,1762657857352,-697.82,0.00017,2]
[393437626,1762657857361,-751.97,0.00017,2]
[393437627,1762657857371,-405.06,0.00017,2]
[393437628,1762657857381,-340.77,0.00017003,2]
[393437629,1762657857391,-500.0,0.00017037,6]
[393437630,1762657857400,-500.0,0.00017047,2]
[393437631,1762657857410,-202.65981266,0.00017047,2]
[393437632,1762657857420,-204.5436472,0.00017047,2]
[393437633,1762657857430,-150.0,0.00017047,2]
[393437634,1762657857440,-500.0,0.00017047,2]
[393437635,1762657857451,-565.0,0.00017047,2]
[393437636,1762657857460,-174.0,0.00017048,2]
[393437637,1762657857470,-7149.08871994,0.00017048,2]
[393437638,1762657857480,-345.62653601,0.00017048,2]
[393437639,1762657857489,-9563.57407237,0.00017062,2]
[393437640,1762657857499,-826.0,0.00017073,2]
[393437641,1762657857509,-1240.0,0.00017114,2]
[393437642,1762657857518,-826.0,0.00017114,2]
[393437643,1762657857527,-926.51379968,0.00017114,2]
[393437644,1762657857538,-1331.41927521,0.00017119,2]
[393437645,1762657857548,-168.0,0.00017158,2]
[393437646,1762657857558,-205.39982176,0.0001717,2]
[393437647,1762657857568,-500.0,0.00017174,6]
[393437648,1762657857577,-211.10495616,0.00017184,2]
[393437649,1762657857587,-150.0,0.00017184,2]
[393437650,1762657857596,-500.0,0.00017184,2]
[393437651,1762657857606,-565.0,0.00017184,2]
[393437652,1762657857615,-5888.0,0.0001719,2]
[393437653,1762657857625,-7149.08871994,0.0001719,2]
[393437654,1762657857635,-345.62653601,0.0001719,2]
[393437655,1762657857644,-9563.57407237,0.00017202,2]
[393437656,1762657857654,-1644.28421957,0.00017208,2]
[393437657,1762657857663,-166.66,0.0001722,2]
[393437658,1762657857672,-300.0,0.00017221,2]
[393437659,1762657857682,-1205.69,0.00017259,2]
[393437660,1762657857691,-3476.0,0.00017262,2]
[393437661,1762657857700,-1073.38,0.00017269,2]
[393437662,1762657857709,-500.0,0.00017311,6]
[393437663,1762657857720,-1000.0,0.00017321,2]
[393437664,1762657857730,-501.87005511,0.00017321,2]
[393437665,1762657857739,-1000.0,0.00017321,2]
[393437666,1762657857749,-588.53559498,0.00017321,2]
[393437667,1762657857758,-150.0,0.00017321,2]
[393437668,1762657857767,-500.0,0.00017321,2]
[393437669,1762657857776,-500.0,0.00017323,2]
[393437670,1762657857786,-500.0,0.00017323,2]
[393437671,1762657857795,-7149.08871994,0.00017332,2]
[393437672,1762657857806,-345.62653601,0.00017332,2]
[393437673,1762657857815,-9563.57407237,0.00017341,2]
[393437674,1762657857825,-205.39982176,0.00017352,2]
[393437675,1762657857835,-1331.41927521,0.00017374,2]
[393437676,1762657857844,-1100.0,0.000174,6]
[393437677,1762657857854,-230.0,0.00017444,2]
[393437678,1762657857864,-500.0,0.00017448,6]
[393437679,1762657857873,-193.65862463,0.00017458,2]
[393437680,1762657857883,-500.0,0.00017458,2]
[393437681,1762657857892,-7149.08871994,0.00017474,2]
[393437682,1762657857902,-345.62653601,0.00017474,2]
[393437683,1762657857912,-9563.57407237,0.00017481,2]
[393437684,1762657857921,-168.0,0.00017482,2]
[393437685,1762657857930,-3476.0,0.00017495,2]
[393437686,1762657857940,-1500.0,0.000175,6]
[393437687,1762657857949,-998.86255117,0.00017521,2]
[393437688,1762657857959,-1002.12377643,0.00017521,2]
[393437689,1762657857968,-594.29200881,0.00017521,2]
[393437690,1762657857978,-562.61261097,0.00017521,2]
[393437691,1762657857987,-375.37587173,0.00017521,2]
[393437692,1762657857996,-1003.9039651,0.00017521,2]
[393437693,1762657858005,-644.32524713,0.00017521,2]
[393437694,1762657858014,-500.97801948,0.00017521,2]
[393437695,1762657858024,-3476.0,0.00017522,2]
[393437696,1762657858034,-608.0,0.00017525,2]
[393437697,1762657858043,-576.362,0.00017525,2]
[393437698,1762657858053,-3425.0,0.00017525,2]
[393437699,1762657858063,-1602.924,0.00017525,2]
[393437700,1762657858072,-823.0,0.00017525,2]
[393437701,1762657858082,-1273.0,0.00017529,2]
[393437702,1762657858092,-813.0,0.00017529,2]
[393437703,1762657858101,-166.67,0.00017534,2]
[393437704,1762657858111,-1189.0,0.00017534,2]
[393437705,1762657858120,-906.0,0.00017534,2]
[393437706,1762657858130,-2142.0,0.00017534,2]
[393437707,1762657858139,-6661.0,0.00017534,2]
[393437708,1762657858149,-559.0,0.00017534,2]
[393437709,1762657858160,-6499.92,0.00017534,2]
[393437710,1762657858169,-3098.0,0.00017534,2]
[393437711,1762657858179,-205.39982176,0.00017535,2]
[393437712,1762657858188,-1073.38,0.00017543,2]
[393437713,1762657858199,-500.0,0.00017562,2]
[393437714,1762657858209,-500.0,0.00017585,6]
[393437715,1762657858219,-500.0,0.00017595,2]
[393437716,1762657858230,-1800.0,0.000176,6]
[393437717,1762657858239,-283.9,0.00017613,2]
[393437718,1762657858249,-7149.08871994,0.00017616,2]
[393437719,1762657858259,-345.62653601,0.00017616,2]
[393437720,1762657858268,-2500.0,0.00017618,3]
[393437721,1762657858278,-9563.57407237,0.00017621,2]
[393437722,1762657858288,-2500.0,0.00017627,3]
[393437723,1762657858297,-2500.0,0.00017636,3]
[393437724,1762657858306,-2500.0,0.00017645,3]
[393437725,1762657858316,-2500.0,0.00017654,3]
[393437726,1762657858325,-2500.0,0.00017662,3]
[393437727,1762657858335,-150.0,0.00017665,2]
[393437728,1762657858344,-200.0,0.00017665,2]
[393437729,1762657858355,-259.0,0.00017665,2]
[393437730,1762657858365,-209.0,0.00017665,2]
[393437731,1762657858374,-206.694,0.00017665,2]
[393437732,1762657858384,-250.0,0.00017665,2]
[393437733,1762657858393,-216.331,0.00017665,2]
[393437734,1762657858402,-152.787,0.00017665,2]
[393437735,1762657858412,-188.67,0.00017665,2]
[393437736,1762657858421,-188.931,0.00017665,2]
[393437737,1762657858431,-269.989,0.00017665,2]
[393437738,1762657858441,-162.145,0.00017665,2]
[393437739,1762657858450,-266.384,0.00017665,2]
[393437740,1762657858459,-209.91,0.00017665,2]
[393437741,1762657858469,-221.078,0.00017665,2]
[393437742,1762657858478,-1316.0,0.00017665,2]
[393437743,1762657858487,-2500.0,0.00017671,3]
[393437744,1762657858497,-1205.93,0.00017671,2]
[393437745,1762657858506,-1205.93,0.00017671,2]
[393437746,1762657858516,-5888.0,0.00017672,2]
[393437747,1762657858526,-2500.0,0.0001768,3]
[393437748,1762657858535,-2500.0,0.00017689,3]
[393437749,1762657858546,-2500.0,0.00017698,3]
[393437750,1762657858556,-300.0,0.000177,6]
[393437751,1762657858565,-2500.0,0.00017706,3]
[393437752,1762657858574,-1000.0,0.00017707,2]
[393437753,1762657858583,-2500.0,0.00017715,3]
[393437754,1762657858592,-205.39982176,0.00017717,2]
[393437755,1762657858602,-581.92420023,0.00017722,6]
[393437756,1762657858611,-2500.0,0.00017724,3]
[393437757,1762657858621,-150.0,0.00017726,2]
[393437758,1762657858630,-150.0,0.00017726,2]
[393437759,1762657858639,-150.0,0.00017726,2]
[393437760,1762657858648,-549.32,0.00017726,2]
[393437761,1762657858658,-549.32,0.00017726,2]
[393437762,1762657858668,-549.32,0.00017726,2]
[393437763,1762657858677,-500.0,0.00017732,2]
[393437764,1762657858686,-332.10480629,0.00017732,2]
[393437765,1762657858695,-500.0,0.00017732,2]
[393437766,1762657858704,-2500.0,0.00017733,3]
[393437767,1762657858714,-2500.0,0.00017742,3]
[393437768,1762657858723,-241.21753528,0.00017743,2]
[393437769,1762657858732,-500.0,0.00017743,2]
[393437770,1762657858742,-500.0,0.00017743,2]
[393437771,1762657858751,-2500.0,0.0001775,3]
[393437772,1762657858761,-7149.08871994,0.00017758,2]
[393437773,1762657858770,-345.62653601,0.00017758,2]
[393437774,1762657858781,-2500.0,0.00017759,3]
[393437775,1762657858791,-9563.57407237,0.0001776,2]
[393437776,1762657858800,-2500.0,0.00017768,3]
[393437777,1762657858809,-2500.0,0.00017777,3]
[393437778,1762657858818,-2500.0,0.00017786,3]
[393437779,1762657858828,-2500.0,0.00017794,3]
[393437780,1762657858837,-334.0,0.00017799,2]
[393437781,1762657858847,-300.0,0.000178,6]
[393437782,1762657858856,-2500.0,0.00017803,3]
[393437783,1762657858865,-154.99215178,0.00017808,2]
[393437784,1762657858875,-2500.0,0.00017812,3]
[393437785,1762657858884,-1073.38,0.00017817,2]
[393437786,1762657858894,-2500.0,0.00017821,3]
[393437787,1762657858903,-2500.0,0.0001783,3]
[393437788,1762657858912,-478.20968403,0.0001783,3]
[393437789,1762657858921,-334.0,0.00017832,2]
[393437790,1762657858930,-2500.0,0.00017838,3]
[393437791,1762657858939,-2500.0,0.00017847,3]
[393437792,1762657858949,-168.0,0.00017851,2]
[393437793,1762657858957,-2500.0,0.00017856,3]
[393437794,1762657858967,-2500.0,0.00017865,3]
[393437795,1762657858976,-1500.0,0.00017868,2]
[393437796,1762657858985,-1500.0,0.00017868,2]
[393437797,1762657858994,-500.0,0.00017869,2]
[393437798,1762657859003,-2500.0,0.00017874,3]
[393437799,1762657859102,-2500.0,0.00017874,3]
[393437800,1762657859114,-2500.0,0.00017882,3]
[393437801,1762657859124,-2500.0,0.00017882,3]
[393437802,1762657859133,-2500.0,0.00017891,3]
[393437803,1762657859144,-2500.0,0.00017891,3]
[393437804,1762657859154,-500.0,0.00017899,2]
[393437805,1762657859163,-500.0,0.00017899,2]
[393437806,1762657859172,-500.0,0.00017899,2]
[393437807,1762657859182,-2500.0,0.000179,3]
[393437808,1762657859191,-1439.2123557,0.000179,3]
[393437809,1762657859201,-2500.0,0.000179,3]
[393437810,1762657859210,-2500.0,0.000179,3]
[393437811,1762657859219,-478.20968403,0.000179,3]
[393437812,1762657859231,-9563.57407237,0.000179,2]
[393437813,1762657859241,-269.35917809,0.000179,2]
[393437814,1762657859250,-300.0,0.000179,6]
[393437815,1762657859259,-7149.08871994,0.000179,2]
[393437816,1762657859269,-235.83740214,0.000179,2]
[393437817,1762657859278,-345.62653601,0.000179,2]
[393437818,1762657859289,-3545.71687795,0.000179,2]
[393437819,1762657859298,-2500.0,0.000179,3]
[393437820,1762657859307,-375.22551572,0.000179,3]